[Event "Titled Tuesday Blitz November 22 Late 2022"]
[White "Barria Zuniga, Daniel"]
[Black "Liu, Kelsey"]
[WhiteFideId "3400816"]
[BlackFideId "30944481"]
[WhiteElo "2414"]
[BlackElo "2333"]
[Result "1-0"]
[Round "02"]
[TimeControl "180+1"]
[Date "2022.11.23"]
[WhiteClock "0:01:58"]
[BlackClock "0:00:07"]

1. d4 {[%clk 0:02:55]}  Nf6 {[%clk 0:02:00]} 2. c4 {[%clk 0:02:55]}  e6 {[%clk 0:01:59]} 3. Nf3 {[%clk 0:02:55]}  b6 {[%clk 0:01:58]} 4. g3 {[%clk 0:02:55]}  Bb7 {[%clk 0:01:58]} 5. Bg2 {[%clk 0:02:55]}  Be7 {[%clk 0:01:59]} 6. Nc3 {[%clk 0:02:54]}  O-O {[%clk 0:01:58]} 7. Qc2 {[%clk 0:02:54]}  a5 {[%clk 0:01:51]} 8. e4 {[%clk 0:02:52]}  Na6 {[%clk 0:01:51]} 9. O-O {[%clk 0:02:51]}  Nb4 {[%clk 0:01:44]} 10. Qe2 {[%clk 0:02:51]}  d5 {[%clk 0:01:35]} 11. exd5 {[%clk 0:02:42]}  exd5 {[%clk 0:01:34]} 12. Ne5 {[%clk 0:02:41]}  Bd6 {[%clk 0:01:21]} 13. a3 {[%clk 0:02:38]}  Nc6 {[%clk 0:00:58]} 14. Nxc6 {[%clk 0:02:20]}  Bxc6 {[%clk 0:00:56]} 15. Bg5 {[%clk 0:02:19]}  Be7 {[%clk 0:00:31]} 16. Rad1 {[%clk 0:02:12]}  Qd7 {[%clk 0:00:16]} 17. Bxf6 {[%clk 0:02:07]}  Bxf6 {[%clk 0:00:16]} 18. Bxd5 {[%clk 0:02:07]}  Rfe8 {[%clk 0:00:12]} 19. Qf3 {[%clk 0:02:06]}  Bxd5 {[%clk 0:00:12]} 20. Nxd5 {[%clk 0:02:06]}  Bd8 {[%clk 0:00:12]} 21. Rd3 {[%clk 0:02:03]}  c6 {[%clk 0:00:11]} 22. Ne3 {[%clk 0:02:03]}  Bc7 {[%clk 0:00:09]} 23. Rfd1 {[%clk 0:02:02]}  Re6 {[%clk 0:00:09]} 24. d5 {[%clk 0:02:00]}  cxd5 {[%clk 0:00:09]} 25. Nxd5 {[%clk 0:02:00]}  Qe8 {[%clk 0:00:07]} 26. Nxc7 {[%clk 0:01:58]} 1-0


[Site "https://www.chess.com"]

[Event "Titled Tuesday Blitz November 22 Late 2022"]
[White "Bilan, Danila"]
[Black "Baltaci, Ismail Tarik"]
[WhiteFideId "24161918"]
[BlackFideId "6365213"]
[WhiteElo "2173"]
[BlackElo "2319"]
[Result "0-1"]
[Round "02"]
[TimeControl "180+1"]
[Date "2022.11.23"]
[WhiteClock "0:00:07"]
[BlackClock "0:00:41"]

1. d4 {[%clk 0:03:00]}  d5 {[%clk 0:02:58]} 2. Nf3 {[%clk 0:02:57]}  Nf6 {[%clk 0:02:57]} 3. c4 {[%clk 0:02:57]}  dxc4 {[%clk 0:02:56]} 4. e3 {[%clk 0:02:57]}  e6 {[%clk 0:02:55]} 5. Bxc4 {[%clk 0:02:57]}  a6 {[%clk 0:02:56]} 6. a4 {[%clk 0:02:56]}  c5 {[%clk 0:02:56]} 7. O-O {[%clk 0:02:56]}  Nc6 {[%clk 0:02:51]} 8. Nc3 {[%clk 0:02:53]}  cxd4 {[%clk 0:02:50]} 9. exd4 {[%clk 0:02:54]}  Be7 {[%clk 0:02:50]} 10. Bf4 {[%clk 0:02:43]}  O-O {[%clk 0:02:50]} 11. Rc1 {[%clk 0:02:31]}  Nb4 {[%clk 0:02:48]} 12. Ne5 {[%clk 0:02:26]}  Nfd5 {[%clk 0:02:47]} 13. Bg3 {[%clk 0:02:19]}  Bf6 {[%clk 0:02:40]} 14. Ne4 {[%clk 0:02:07]}  Bd7 {[%clk 0:02:36]} 15. Qb3 {[%clk 0:01:54]}  Bxe5 {[%clk 0:02:34]} 16. dxe5 {[%clk 0:01:47]}  Bc6 {[%clk 0:02:33]} 17. Nd6 {[%clk 0:01:41]}  Qd7 {[%clk 0:02:16]} 18. a5 {[%clk 0:01:38]}  Rab8 {[%clk 0:01:58]} 19. f4 {[%clk 0:01:18]}  b5 {[%clk 0:01:51]} 20. axb6 {[%clk 0:01:14]}  Rxb6 {[%clk 0:01:50]} 21. Bf2 {[%clk 0:01:14]}  Rbb8 {[%clk 0:01:50]} 22. Bc5 {[%clk 0:01:09]}  Bb5 {[%clk 0:01:46]} 23. Nxb5 {[%clk 0:01:04]}  axb5 {[%clk 0:01:46]} 24. Bxd5 {[%clk 0:01:02]}  Nxd5 {[%clk 0:01:38]} 25. Bxf8 {[%clk 0:01:02]}  Rxf8 {[%clk 0:01:39]} 26. Qa3 {[%clk 0:00:55]}  Rb8 {[%clk 0:01:33]} 27. Qc5 {[%clk 0:00:45]}  g6 {[%clk 0:01:31]} 28. g3 {[%clk 0:00:38]}  b4 {[%clk 0:01:32]} 29. Rfd1 {[%clk 0:00:34]}  Rd8 {[%clk 0:01:26]} 30. Kf2 {[%clk 0:00:24]}  h5 {[%clk 0:01:27]} 31. Rd4 {[%clk 0:00:17]}  h4 {[%clk 0:01:25]} 32. g4 {[%clk 0:00:13]}  Qa4 {[%clk 0:01:24]} 33. Rcd1 {[%clk 0:00:11]}  Qb3 {[%clk 0:01:24]} 34. R1d2 {[%clk 0:00:10]}  Qh3 {[%clk 0:01:22]} 35. g5 {[%clk 0:00:08]}  Qxh2+ {[%clk 0:01:22]} 36. Ke1 {[%clk 0:00:08]}  Qg1+ {[%clk 0:01:22]} 37. Ke2 {[%clk 0:00:09]}  Nxf4+ {[%clk 0:01:18]} 38. Kf3 {[%clk 0:00:09]}  Nd5 {[%clk 0:00:54]} 39. Rxd5 {[%clk 0:00:09]}  Qg3+ {[%clk 0:00:53]} 40. Ke2 {[%clk 0:00:09]}  exd5 {[%clk 0:00:48]} 41. Qe7 {[%clk 0:00:07]}  Rc8 {[%clk 0:00:43]} 42. e6 {[%clk 0:00:07]}  Qg4+ {[%clk 0:00:41]} 43. Kd3 {[%clk 0:00:07]}  Qe4# {[%clk 0:00:41]} 0-1


[Site "https://www.chess.com"]

[Event "Titled Tuesday Blitz November 22 Late 2022"]
[White "Bogaudinov, Rushan"]
[Black "Janaszak, Dawid"]
[WhiteFideId "4129288"]
[BlackFideId "1119206"]
[WhiteElo "1997"]
[BlackElo "2226"]
[Result "0-1"]
[Round "02"]
[TimeControl "180+1"]
[Date "2022.11.23"]
[WhiteClock "0:00:34"]
[BlackClock "0:01:10"]

1. d4 {[%clk 0:03:00]}  Nf6 {[%clk 0:02:59]} 2. c4 {[%clk 0:02:59]}  g6 {[%clk 0:02:56]} 3. Nc3 {[%clk 0:02:59]}  Bg7 {[%clk 0:02:56]} 4. g3 {[%clk 0:02:59]}  O-O {[%clk 0:02:56]} 5. Bg2 {[%clk 0:03:00]}  Nc6 {[%clk 0:02:56]} 6. Nf3 {[%clk 0:02:58]}  d6 {[%clk 0:02:55]} 7. Bf4 {[%clk 0:02:58]}  Bg4 {[%clk 0:02:51]} 8. O-O {[%clk 0:02:56]}  Bxf3 {[%clk 0:02:48]} 9. Bxf3 {[%clk 0:02:54]}  Nd7 {[%clk 0:02:48]} 10. Be3 {[%clk 0:02:50]}  e5 {[%clk 0:02:46]} 11. d5 {[%clk 0:02:03]}  Ne7 {[%clk 0:02:46]} 12. Bg2 {[%clk 0:02:03]}  f5 {[%clk 0:02:45]} 13. f4 {[%clk 0:01:59]}  Kh8 {[%clk 0:02:37]} 14. Qc2 {[%clk 0:01:53]}  Ng8 {[%clk 0:02:27]} 15. b4 {[%clk 0:01:53]}  a5 {[%clk 0:02:25]} 16. a3 {[%clk 0:01:52]}  Ngf6 {[%clk 0:02:25]} 17. h3 {[%clk 0:01:48]}  Nh5 {[%clk 0:02:24]} 18. Kh2 {[%clk 0:01:48]}  exf4 {[%clk 0:02:23]} 19. Bxf4 {[%clk 0:01:43]}  Nxf4 {[%clk 0:02:21]} 20. gxf4 {[%clk 0:01:43]}  Qf6 {[%clk 0:02:14]} 21. Nb5 {[%clk 0:01:37]}  axb4 {[%clk 0:02:11]} 22. a4 {[%clk 0:01:35]}  Qe7 {[%clk 0:01:51]} 23. Nxc7 {[%clk 0:01:31]}  Rac8 {[%clk 0:01:28]} 24. Ne6 {[%clk 0:01:29]}  Bxa1 {[%clk 0:01:23]} 25. Rxa1 {[%clk 0:01:23]}  Rfe8 {[%clk 0:01:18]} 26. Rb1 {[%clk 0:01:19]}  Qf6 {[%clk 0:01:13]} 27. Rxb4 {[%clk 0:01:12]}  Nc5 {[%clk 0:01:14]} 28. Nxc5 {[%clk 0:01:07]}  Rxc5 {[%clk 0:01:13]} 29. Rxb7 {[%clk 0:01:06]}  Qd4 {[%clk 0:01:11]} 30. Qb2 {[%clk 0:00:52]}  Rxc4 {[%clk 0:01:12]} 31. Qxd4+ {[%clk 0:00:52]}  Rxd4 {[%clk 0:01:12]} 32. Rd7 {[%clk 0:00:35]}  Rxe2 {[%clk 0:01:11]} 33. Kg3 {[%clk 0:00:34]}  Rd3+ {[%clk 0:01:10]} 0-1


[Site "https://www.chess.com"]

[Event "Titled Tuesday Blitz November 22 Late 2022"]
[White "Boruchovsky, Avital"]
[Black "Richter, Paul"]
[WhiteFideId "2800055"]
[BlackFideId "2046350"]
[WhiteElo "2458"]
[BlackElo "2550"]
[Result "1-0"]
[Round "02"]
[TimeControl "180+1"]
[Date "2022.11.23"]
[WhiteClock "0:01:06"]
[BlackClock "0:00:35"]

1. c4 {[%clk 0:03:00]}  Nf6 {[%clk 0:02:59]} 2. Nc3 {[%clk 0:03:00]}  g6 {[%clk 0:02:59]} 3. e4 {[%clk 0:03:00]}  d6 {[%clk 0:02:59]} 4. d4 {[%clk 0:03:00]}  Bg7 {[%clk 0:03:00]} 5. Be2 {[%clk 0:03:01]}  O-O {[%clk 0:03:00]} 6. h4 {[%clk 0:03:01]}  h5 {[%clk 0:03:01]} 7. Nh3 {[%clk 0:03:00]}  c5 {[%clk 0:02:57]} 8. d5 {[%clk 0:03:00]}  e6 {[%clk 0:02:56]} 9. Ng5 {[%clk 0:03:00]}  exd5 {[%clk 0:02:56]} 10. exd5 {[%clk 0:03:00]}  Re8 {[%clk 0:02:45]} 11. Bf4 {[%clk 0:02:50]}  a6 {[%clk 0:02:42]} 12. Qd2 {[%clk 0:02:49]}  Bf5 {[%clk 0:02:40]} 13. f3 {[%clk 0:02:47]}  Qe7 {[%clk 0:02:31]} 14. O-O {[%clk 0:02:30]}  Nh7 {[%clk 0:02:03]} 15. Rae1 {[%clk 0:02:28]}  Bd4+ {[%clk 0:01:53]} 16. Kh1 {[%clk 0:02:24]}  Nxg5 {[%clk 0:01:47]} 17. Bxg5 {[%clk 0:02:25]}  Be3 {[%clk 0:01:28]} 18. Qxe3 {[%clk 0:01:33]}  Qxe3 {[%clk 0:01:29]} 19. Bxe3 {[%clk 0:01:33]}  Rxe3 {[%clk 0:01:29]} 20. g4 {[%clk 0:01:34]}  hxg4 {[%clk 0:01:05]} 21. fxg4 {[%clk 0:01:35]}  Bd7 {[%clk 0:01:02]} 22. Bf3 {[%clk 0:01:31]}  Rxe1 {[%clk 0:00:56]} 23. Rxe1 {[%clk 0:01:32]}  Kf8 {[%clk 0:00:45]} 24. Ne4 {[%clk 0:01:31]}  b5 {[%clk 0:00:38]} 25. Nxd6 {[%clk 0:01:30]}  bxc4 {[%clk 0:00:37]} 26. Nxc4 {[%clk 0:01:30]}  Ra7 {[%clk 0:00:37]} 27. h5 {[%clk 0:01:25]}  gxh5 {[%clk 0:00:36]} 28. gxh5 {[%clk 0:01:26]}  Bb5 {[%clk 0:00:36]} 29. Nd6 {[%clk 0:01:17]}  Nd7 {[%clk 0:00:35]} 30. Re8+ {[%clk 0:01:06]}  Kg7 {[%clk 0:00:35]} 31. Re7 {[%clk 0:01:06]} 1-0


[Site "https://www.chess.com"]

[Event "Titled Tuesday Blitz November 22 Late 2022"]
[White "Castillo Pena, Patricia Evarista"]
[Black "Zhu, Jiner"]
[WhiteFideId "6412106"]
[BlackFideId "8608059"]
[WhiteElo "1919"]
[BlackElo "2384"]
[Result "0-1"]
[Round "02"]
[TimeControl "180+1"]
[Date "2022.11.23"]
[WhiteClock "0:00:01"]
[BlackClock "0:01:29"]

1. d4 {[%clk 0:02:55]}  Nf6 {[%clk 0:02:58]} 2. Nf3 {[%clk 0:02:53]}  c5 {[%clk 0:02:57]} 3. e3 {[%clk 0:02:52]}  d5 {[%clk 0:02:54]} 4. Bd3 {[%clk 0:02:50]}  e6 {[%clk 0:02:52]} 5. b3 {[%clk 0:02:47]}  b6 {[%clk 0:02:51]} 6. Bb2 {[%clk 0:02:44]}  Be7 {[%clk 0:02:51]} 7. Nbd2 {[%clk 0:02:44]}  Bb7 {[%clk 0:02:50]} 8. O-O {[%clk 0:02:43]}  O-O {[%clk 0:02:50]} 9. Ne5 {[%clk 0:02:43]}  Nbd7 {[%clk 0:02:45]} 10. f4 {[%clk 0:02:41]}  Ne4 {[%clk 0:02:41]} 11. c4 {[%clk 0:02:38]}  Nxd2 {[%clk 0:02:35]} 12. Qxd2 {[%clk 0:02:36]}  dxc4 {[%clk 0:02:35]} 13. bxc4 {[%clk 0:02:34]}  Nf6 {[%clk 0:02:35]} 14. Rad1 {[%clk 0:02:31]}  Rc8 {[%clk 0:02:32]} 15. Qe2 {[%clk 0:02:05]}  Qc7 {[%clk 0:02:30]} 16. e4 {[%clk 0:01:57]}  cxd4 {[%clk 0:02:29]} 17. Bxd4 {[%clk 0:01:56]}  Bc5 {[%clk 0:02:24]} 18. Bb1 {[%clk 0:01:44]}  Bxd4+ {[%clk 0:02:19]} 19. Rxd4 {[%clk 0:01:45]}  Qc5 {[%clk 0:02:19]} 20. Qf2 {[%clk 0:01:40]}  Rfd8 {[%clk 0:02:09]} 21. Rxd8+ {[%clk 0:01:21]}  Rxd8 {[%clk 0:02:10]} 22. Qxc5 {[%clk 0:01:13]}  bxc5 {[%clk 0:02:11]} 23. Re1 {[%clk 0:01:12]}  Rd4 {[%clk 0:02:10]} 24. Kf2 {[%clk 0:01:00]}  Bxe4 {[%clk 0:02:05]} 25. Bxe4 {[%clk 0:00:59]}  Nxe4+ {[%clk 0:02:06]} 26. Kg1 {[%clk 0:00:56]}  f6 {[%clk 0:01:56]} 27. Nc6 {[%clk 0:00:53]}  Rxc4 {[%clk 0:01:56]} 28. Nxa7 {[%clk 0:00:51]}  Kf7 {[%clk 0:01:54]} 29. g3 {[%clk 0:00:48]}  Nc3 {[%clk 0:01:51]} 30. a3 {[%clk 0:00:38]}  Ra4 {[%clk 0:01:43]} 31. Nc8 {[%clk 0:00:28]}  Rxa3 {[%clk 0:01:41]} 32. Nd6+ {[%clk 0:00:27]}  Ke7 {[%clk 0:01:40]} 33. Nc4 {[%clk 0:00:26]}  Ra4 {[%clk 0:01:37]} 34. Nb6 {[%clk 0:00:25]}  Ra2 {[%clk 0:01:37]} 35. Nc8+ {[%clk 0:00:22]}  Kd7 {[%clk 0:01:35]} 36. Nb6+ {[%clk 0:00:21]}  Kd6 {[%clk 0:01:33]} 37. Nc4+ {[%clk 0:00:20]}  Ke7 {[%clk 0:01:32]} 38. Nb6 {[%clk 0:00:19]}  Ne2+ {[%clk 0:01:32]} 39. Kf1 {[%clk 0:00:18]}  Nd4 {[%clk 0:01:32]} 40. Nd5+ {[%clk 0:00:11]}  Kd6 {[%clk 0:01:30]} 41. Nc3 {[%clk 0:00:04]}  Rxh2 {[%clk 0:01:30]} 42. Ne4+ {[%clk 0:00:01]}  Kd5 {[%clk 0:01:29]} 0-1


[Site "https://www.chess.com"]

[Event "Titled Tuesday Blitz November 22 Late 2022"]
[White "Chigaev, Maksim"]
[Black "Han, Yichen"]
[WhiteFideId "4108116"]
[BlackFideId "1054430"]
[WhiteElo "2541"]
[BlackElo "2323"]
[Result "1-0"]
[Round "02"]
[TimeControl "180+1"]
[Date "2022.11.22"]
[WhiteClock "0:00:06"]
[BlackClock "0:00:05"]

1. e4 {[%clk 0:03:00]}  e5 {[%clk 0:02:58]} 2. Nf3 {[%clk 0:02:59]}  Nc6 {[%clk 0:02:58]} 3. g3 {[%clk 0:02:59]}  Nf6 {[%clk 0:02:57]} 4. d3 {[%clk 0:02:59]}  Be7 {[%clk 0:02:57]} 5. Bg2 {[%clk 0:02:59]}  O-O {[%clk 0:02:57]} 6. O-O {[%clk 0:03:00]}  d5 {[%clk 0:02:56]} 7. exd5 {[%clk 0:03:00]}  Nxd5 {[%clk 0:02:57]} 8. Re1 {[%clk 0:03:01]}  Bf6 {[%clk 0:02:53]} 9. Nc3 {[%clk 0:02:45]}  Nxc3 {[%clk 0:02:48]} 10. bxc3 {[%clk 0:02:46]}  Re8 {[%clk 0:02:48]} 11. Nd2 {[%clk 0:02:44]}  Be6 {[%clk 0:02:41]} 12. Rb1 {[%clk 0:02:36]}  Qc8 {[%clk 0:02:36]} 13. c4 {[%clk 0:02:28]}  Rb8 {[%clk 0:02:31]} 14. Bb2 {[%clk 0:02:18]}  Bg4 {[%clk 0:02:16]} 15. Qc1 {[%clk 0:02:15]}  Bg5 {[%clk 0:02:03]} 16. c3 {[%clk 0:01:46]}  Bh3 {[%clk 0:01:50]} 17. Bh1 {[%clk 0:01:42]}  Qd7 {[%clk 0:01:33]} 18. Qc2 {[%clk 0:01:40]}  Bxd2 {[%clk 0:01:30]} 19. Qxd2 {[%clk 0:01:40]}  Rbd8 {[%clk 0:01:30]} 20. d4 {[%clk 0:01:12]}  Bf5 {[%clk 0:01:10]} 21. Rbd1 {[%clk 0:01:01]}  Na5 {[%clk 0:01:08]} 22. c5 {[%clk 0:00:37]}  Nc4 {[%clk 0:01:08]} 23. Qe2 {[%clk 0:00:38]}  Qa4 {[%clk 0:00:44]} 24. d5 {[%clk 0:00:25]}  e4 {[%clk 0:00:35]} 25. Bc1 {[%clk 0:00:23]}  Qb5 {[%clk 0:00:22]} 26. Rd4 {[%clk 0:00:20]}  e3 {[%clk 0:00:12]} 27. Qxc4 {[%clk 0:00:18]}  exf2+ {[%clk 0:00:12]} 28. Kxf2 {[%clk 0:00:19]}  Qb1 {[%clk 0:00:11]} 29. Qb3 {[%clk 0:00:11]}  Rxe1 {[%clk 0:00:06]} 30. Qxb1 {[%clk 0:00:11]}  Bxb1 {[%clk 0:00:06]} 31. Kxe1 {[%clk 0:00:10]}  Bxa2 {[%clk 0:00:07]} 32. c4 {[%clk 0:00:10]}  a5 {[%clk 0:00:07]} 33. Ba3 {[%clk 0:00:10]}  a4 {[%clk 0:00:07]} 34. Kd2 {[%clk 0:00:08]}  Re8 {[%clk 0:00:06]} 35. Bf3 {[%clk 0:00:08]}  Bb1 {[%clk 0:00:06]} 36. c6 {[%clk 0:00:07]}  b6 {[%clk 0:00:05]} 37. d6 {[%clk 0:00:07]}  cxd6 {[%clk 0:00:06]} 38. Rxd6 {[%clk 0:00:08]}  Bf5 {[%clk 0:00:06]} 39. c7 {[%clk 0:00:08]}  f6 {[%clk 0:00:05]} 40. Bd5+ {[%clk 0:00:06]} 1-0


[Site "https://www.chess.com"]

[Event "Titled Tuesday Blitz November 22 Late 2022"]
[White "Czopor, Maciej"]
[Black "Dardha, Daniel"]
[WhiteFideId "21805431"]
[BlackFideId "240990"]
[WhiteElo "2602"]
[BlackElo "2885"]
[Result "1-0"]
[Round "02"]
[TimeControl "180+1"]
[Date "2022.11.23"]
[WhiteClock "0:00:03"]
[BlackClock "0:00:23"]

1. Nf3 {[%clk 0:02:59]}  d5 {[%clk 0:02:57]} 2. g3 {[%clk 0:02:58]}  b6 {[%clk 0:02:57]} 3. c4 {[%clk 0:02:58]}  dxc4 {[%clk 0:02:57]} 4. Bg2 {[%clk 0:02:58]}  Bb7 {[%clk 0:02:57]} 5. O-O {[%clk 0:02:58]}  e6 {[%clk 0:02:57]} 6. Qa4+ {[%clk 0:02:58]}  Nd7 {[%clk 0:02:56]} 7. Qxc4 {[%clk 0:02:59]}  c5 {[%clk 0:02:54]} 8. b3 {[%clk 0:02:55]}  Be7 {[%clk 0:02:52]} 9. Bb2 {[%clk 0:02:56]}  Bf6 {[%clk 0:02:52]} 10. Bxf6 {[%clk 0:02:46]}  Ngxf6 {[%clk 0:02:53]} 11. Nc3 {[%clk 0:02:44]}  O-O {[%clk 0:02:53]} 12. Rac1 {[%clk 0:02:40]}  Bxf3 {[%clk 0:02:53]} 13. Bxf3 {[%clk 0:02:34]}  Ne5 {[%clk 0:02:53]} 14. Qf4 {[%clk 0:02:33]}  Nxf3+ {[%clk 0:02:49]} 15. Qxf3 {[%clk 0:02:34]}  Qxd2 {[%clk 0:02:49]} 16. Rfd1 {[%clk 0:02:33]}  Qb2 {[%clk 0:02:45]} 17. Qd3 {[%clk 0:02:27]}  h6 {[%clk 0:02:30]} 18. Rc2 {[%clk 0:02:27]}  Qa3 {[%clk 0:02:30]} 19. e4 {[%clk 0:02:14]}  Rad8 {[%clk 0:02:12]} 20. Qxd8 {[%clk 0:02:13]}  Rxd8 {[%clk 0:02:13]} 21. Rxd8+ {[%clk 0:02:14]}  Kh7 {[%clk 0:02:13]} 22. h3 {[%clk 0:02:06]}  Qb4 {[%clk 0:02:10]} 23. f3 {[%clk 0:01:46]}  c4 {[%clk 0:01:50]} 24. bxc4 {[%clk 0:01:44]}  Qxc4 {[%clk 0:01:49]} 25. Kg2 {[%clk 0:01:42]}  b5 {[%clk 0:01:45]} 26. Rdd2 {[%clk 0:01:34]}  Qb4 {[%clk 0:01:36]} 27. e5 {[%clk 0:01:31]}  Nh5 {[%clk 0:01:36]} 28. Ne4 {[%clk 0:01:25]}  Qe7 {[%clk 0:01:27]} 29. Rd6 {[%clk 0:01:16]}  Qb7 {[%clk 0:01:15]} 30. Rdc6 {[%clk 0:01:11]}  Kg6 {[%clk 0:01:15]} 31. Nd6 {[%clk 0:01:05]}  Qe7 {[%clk 0:01:15]} 32. f4 {[%clk 0:01:03]}  Qd8 {[%clk 0:01:07]} 33. Rc7 {[%clk 0:01:01]}  Qa8+ {[%clk 0:01:05]} 34. R2c6 {[%clk 0:00:52]}  a5 {[%clk 0:01:04]} 35. Kf3 {[%clk 0:00:29]}  b4 {[%clk 0:00:47]} 36. g4 {[%clk 0:00:29]}  a4 {[%clk 0:00:47]} 37. f5+ {[%clk 0:00:16]}  exf5 {[%clk 0:00:47]} 38. gxh5+ {[%clk 0:00:10]}  Kxh5 {[%clk 0:00:48]} 39. Nxf5 {[%clk 0:00:09]}  b3 {[%clk 0:00:46]} 40. Nxg7+ {[%clk 0:00:08]}  Kg5 {[%clk 0:00:40]} 41. Kg3 {[%clk 0:00:08]}  f6 {[%clk 0:00:24]} 42. h4+ {[%clk 0:00:07]}  Kg6 {[%clk 0:00:24]} 43. Rxf6+ {[%clk 0:00:05]}  Kh7 {[%clk 0:00:24]} 44. Ne6+ {[%clk 0:00:02]}  Kg8 {[%clk 0:00:23]} 45. Rg7+ {[%clk 0:00:03]}  Kh8 {[%clk 0:00:23]} 46. Rxh6# {[%clk 0:00:03]} 1-0


[Site "https://www.chess.com"]

[Event "Titled Tuesday Blitz November 22 Late 2022"]
[White "Djordjevic, Vuk"]
[Black "Silva, Caio Henrique Angelico"]
[WhiteFideId "902098"]
[BlackFideId "22777210"]
[WhiteElo "2456"]
[BlackElo "1990"]
[Result "1-0"]
[Round "02"]
[TimeControl "180+1"]
[Date "2022.11.23"]
[WhiteClock "0:00:30"]
[BlackClock "0:00:11"]

1. d4 {[%clk 0:03:00]}  Nf6 {[%clk 0:02:59]} 2. Bg5 {[%clk 0:03:00]}  Ne4 {[%clk 0:02:54]} 3. Bf4 {[%clk 0:03:00]}  d5 {[%clk 0:02:54]} 4. e3 {[%clk 0:03:00]}  e6 {[%clk 0:02:50]} 5. Bd3 {[%clk 0:03:00]}  Bd6 {[%clk 0:02:51]} 6. Ne2 {[%clk 0:02:58]}  O-O {[%clk 0:02:49]} 7. O-O {[%clk 0:02:57]}  f5 {[%clk 0:02:49]} 8. c4 {[%clk 0:02:57]}  c6 {[%clk 0:02:49]} 9. Nd2 {[%clk 0:02:54]}  Qe7 {[%clk 0:02:46]} 10. Nf3 {[%clk 0:02:53]}  Nd7 {[%clk 0:02:44]} 11. Rc1 {[%clk 0:02:32]}  g5 {[%clk 0:02:32]} 12. Bxd6 {[%clk 0:02:30]}  Nxd6 {[%clk 0:02:33]} 13. c5 {[%clk 0:02:22]}  Ne4 {[%clk 0:02:31]} 14. Bxe4 {[%clk 0:02:22]}  fxe4 {[%clk 0:02:32]} 15. Ne5 {[%clk 0:02:20]}  Nxe5 {[%clk 0:02:32]} 16. dxe5 {[%clk 0:02:19]}  Qg7 {[%clk 0:02:32]} 17. Qd4 {[%clk 0:02:11]}  Bd7 {[%clk 0:02:32]} 18. Ng3 {[%clk 0:02:09]}  Qg6 {[%clk 0:02:30]} 19. f4 {[%clk 0:02:08]}  exf3 {[%clk 0:02:28]} 20. gxf3 {[%clk 0:02:07]}  Rf7 {[%clk 0:02:23]} 21. f4 {[%clk 0:02:05]}  gxf4 {[%clk 0:02:22]} 22. exf4 {[%clk 0:02:05]}  Raf8 {[%clk 0:02:21]} 23. Rf2 {[%clk 0:01:59]}  h5 {[%clk 0:02:13]} 24. Rcf1 {[%clk 0:01:57]}  h4 {[%clk 0:01:38]} 25. Rg2 {[%clk 0:01:56]}  Rg7 {[%clk 0:01:35]} 26. f5 {[%clk 0:01:56]}  exf5 {[%clk 0:01:32]} 27. Qxh4 {[%clk 0:01:55]}  Qg4 {[%clk 0:01:13]} 28. Qxg4 {[%clk 0:01:43]}  Rxg4 {[%clk 0:01:14]} 29. Nh5 {[%clk 0:01:43]}  Rxg2+ {[%clk 0:01:09]} 30. Kxg2 {[%clk 0:01:44]}  Kf7 {[%clk 0:01:09]} 31. Nf4 {[%clk 0:01:35]}  Rg8+ {[%clk 0:01:08]} 32. Kf3 {[%clk 0:01:35]}  Rh8 {[%clk 0:01:06]} 33. h3 {[%clk 0:01:31]}  Be6 {[%clk 0:01:03]} 34. Rg1 {[%clk 0:01:30]}  d4 {[%clk 0:01:00]} 35. Rg6 {[%clk 0:01:20]}  Bd5+ {[%clk 0:00:57]} 36. Kg3 {[%clk 0:01:19]}  Be4 {[%clk 0:00:58]} 37. Rd6 {[%clk 0:01:13]}  Re8 {[%clk 0:00:57]} 38. Rd7+ {[%clk 0:01:06]}  Re7 {[%clk 0:00:52]} 39. Rxe7+ {[%clk 0:01:06]}  Kxe7 {[%clk 0:00:53]} 40. h4 {[%clk 0:01:06]}  b6 {[%clk 0:00:51]} 41. h5 {[%clk 0:00:47]}  Bb1 {[%clk 0:00:29]} 42. h6 {[%clk 0:00:45]}  d3 {[%clk 0:00:20]} 43. Kf2 {[%clk 0:00:31]}  d2 {[%clk 0:00:11]} 44. Ke2 {[%clk 0:00:30]} 1-0


[Site "https://www.chess.com"]

[Event "Titled Tuesday Blitz November 22 Late 2022"]
[White "Dzierzak, Radoslaw"]
[Black "Lopez Del Alamo, Antonio"]
[WhiteFideId "1161407"]
[BlackFideId "2227339"]
[WhiteElo "2111"]
[BlackElo "2175"]
[Result "0-1"]
[Round "02"]
[TimeControl "180+1"]
[Date "2022.11.23"]
[WhiteClock "0:00:01"]
[BlackClock "0:00:07"]

1. e4 {[%clk 0:02:51]}  c5 {[%clk 0:02:55]} 2. Nf3 {[%clk 0:02:51]}  e6 {[%clk 0:02:53]} 3. d4 {[%clk 0:02:52]}  cxd4 {[%clk 0:02:51]} 4. Nxd4 {[%clk 0:02:53]}  Nf6 {[%clk 0:02:50]} 5. Nc3 {[%clk 0:02:53]}  Nc6 {[%clk 0:02:49]} 6. g3 {[%clk 0:02:53]}  Bb4 {[%clk 0:02:47]} 7. Bg2 {[%clk 0:02:53]}  Qb6 {[%clk 0:02:46]} 8. Nb3 {[%clk 0:02:50]}  Qa6 {[%clk 0:02:45]} 9. Bd2 {[%clk 0:02:39]}  O-O {[%clk 0:02:38]} 10. Qe2 {[%clk 0:02:23]}  Bxc3 {[%clk 0:01:35]} 11. Bxc3 {[%clk 0:02:21]}  Qxe2+ {[%clk 0:01:33]} 12. Kxe2 {[%clk 0:02:22]}  b6 {[%clk 0:01:29]} 13. e5 {[%clk 0:02:15]}  Ng4 {[%clk 0:01:21]} 14. Bxc6 {[%clk 0:01:53]}  dxc6 {[%clk 0:01:19]} 15. h3 {[%clk 0:01:53]}  Nh6 {[%clk 0:01:12]} 16. Rhd1 {[%clk 0:01:51]}  c5 {[%clk 0:01:07]} 17. Bd2 {[%clk 0:01:36]}  Nf5 {[%clk 0:01:02]} 18. g4 {[%clk 0:01:36]}  Ne7 {[%clk 0:01:01]} 19. Bg5 {[%clk 0:01:26]}  f6 {[%clk 0:00:53]} 20. exf6 {[%clk 0:01:26]}  gxf6 {[%clk 0:00:52]} 21. Bh6 {[%clk 0:01:26]}  Re8 {[%clk 0:00:51]} 22. Rd6 {[%clk 0:01:20]}  Nd5 {[%clk 0:00:47]} 23. Nd2 {[%clk 0:01:10]}  Ba6+ {[%clk 0:00:42]} 24. c4 {[%clk 0:01:07]}  Rad8 {[%clk 0:00:40]} 25. Rxd8 {[%clk 0:01:05]}  Rxd8 {[%clk 0:00:39]} 26. a3 {[%clk 0:01:03]}  Kf7 {[%clk 0:00:29]} 27. Kf3 {[%clk 0:00:59]}  Kg6 {[%clk 0:00:23]} 28. Be3 {[%clk 0:00:58]}  Nxe3 {[%clk 0:00:22]} 29. Kxe3 {[%clk 0:00:59]}  Bb7 {[%clk 0:00:20]} 30. b3 {[%clk 0:00:50]}  Rd4 {[%clk 0:00:19]} 31. f3 {[%clk 0:00:37]}  e5 {[%clk 0:00:19]} 32. Nf1 {[%clk 0:00:29]}  Rf4 {[%clk 0:00:16]} 33. Nd2 {[%clk 0:00:28]}  f5 {[%clk 0:00:15]} 34. a4 {[%clk 0:00:24]}  a5 {[%clk 0:00:12]} 35. Rd1 {[%clk 0:00:23]}  Rd4 {[%clk 0:00:10]} 36. Re1 {[%clk 0:00:22]}  f4+ {[%clk 0:00:09]} 37. Ke2 {[%clk 0:00:20]}  Kf6 {[%clk 0:00:10]} 38. Nb1 {[%clk 0:00:18]}  Ke6 {[%clk 0:00:09]} 39. Nc3 {[%clk 0:00:18]}  e4 {[%clk 0:00:09]} 40. fxe4 {[%clk 0:00:18]}  Ke5 {[%clk 0:00:08]} 41. Kf2 {[%clk 0:00:14]}  Rd2+ {[%clk 0:00:08]} 42. Re2 {[%clk 0:00:13]}  Rd3 {[%clk 0:00:08]} 43. Nd5 {[%clk 0:00:12]}  Rxh3 {[%clk 0:00:08]} 44. Nxb6 {[%clk 0:00:12]}  Rh2+ {[%clk 0:00:08]} 45. Ke1 {[%clk 0:00:12]}  Rh1+ {[%clk 0:00:08]} 46. Kd2 {[%clk 0:00:13]}  f3 {[%clk 0:00:09]} 47. Re3 {[%clk 0:00:12]}  Kf4 {[%clk 0:00:10]} 48. Re1 {[%clk 0:00:09]}  Rh2+ {[%clk 0:00:10]} 49. Kd1 {[%clk 0:00:08]}  Bxe4 {[%clk 0:00:10]} 50. Nd7 {[%clk 0:00:06]}  f2 {[%clk 0:00:10]} 51. Rf1 {[%clk 0:00:06]}  Bd3 {[%clk 0:00:10]} 52. Rxf2+ {[%clk 0:00:03]}  Rxf2 {[%clk 0:00:11]} 53. Nxc5 {[%clk 0:00:04]}  Be4 {[%clk 0:00:10]} 54. Kc1 {[%clk 0:00:01]}  Ke3 {[%clk 0:00:07]} 0-1


[Site "https://www.chess.com"]